bitfinex/quotes_BTCUSD_20260104
["timestamp","ask_amount","ask_price","bid_price","bid_amount"]
[1767554028287,0.04708203,90922.0,90918.0,0.06599333]
[1767554028482,0.05799259,90922.0,90917.0,0.06599425]
[1767554029089,0.0109971,90933.0,90922.0,0.07622795]
[1767554029289,0.0109971,90933.0,90925.0,0.01099807]
[1767554029501,0.01099734,90931.0,90925.0,0.06598831]
[1767554029919,0.01099747,90930.0,90925.0,0.06598831]
[1767554030122,4e-05,90935.0,90931.0,0.000638]
[1767554030302,0.01103686,90935.0,90930.0,0.01099747]
[1767554030471,4e-05,90935.0,90931.0,0.01099734]
[1767554030677,0.01099674,90936.0,90931.0,0.03311734]
[1767554031592,0.01099674,90936.0,90931.0,0.08810405]
[1767554031760,0.01099686,90935.0,90931.0,0.03311734]
[1767554031966,0.06598056,90936.0,90931.0,0.03311734]
[1767554032373,0.01099674,90936.0,90931.0,0.08810406]
[1767554033367,0.01099674,90936.0,90931.0,0.03311734]
[1767554033572,0.01099686,90935.0,90931.0,0.02212]
[1767554033775,0.06598058,90936.0,90931.0,0.03311734]
[1767554034112,0.01099674,90936.0,90931.0,0.03311734]
[1767554034266,0.06598121,90935.0,90929.0,0.0770679]
[1767554034466,0.06602121,90935.0,90929.0,0.0770679]
[1767554034670,0.06602121,90935.0,90930.0,0.05498734]
[1767554034869,0.065982,90934.0,90929.0,0.02208]
[1767554035466,0.01099698,90934.0,90930.0,0.01099747]
[1767554035888,0.01103686,90935.0,90930.0,0.0659848]
[1767554036145,4e-05,90935.0,90931.0,0.01099734]
[1767554036869,0.06602122,90935.0,90930.0,0.01099747]
[1767554036987,0.01099698,90934.0,90930.0,0.01099747]
[1767554037207,4e-05,90935.0,90934.0,0.000999]
[1767554037635,4e-05,90935.0,90932.0,0.01099722]
[1767554038258,4e-05,90935.0,90932.0,0.06598315]
[1767554038460,0.06597946,90939.0,90934.0,0.06598191]
[1767554038634,0.01099662,90937.0,90932.0,0.01099722]
[1767554038858,0.06597946,90939.0,90934.0,0.01099698]
[1767554039058,0.0109965,90938.0,90933.0,0.0109971]
[1767554039654,0.01099674,90936.0,90932.0,0.01099722]
[1767554039852,0.01099686,90935.0,90931.0,0.01099734]
[1767554040052,0.01099674,90936.0,90931.0,0.06598399]
[1767554040254,0.06598056,90936.0,90931.0,0.01099734]
[1767554040491,0.000999,90931.0,90930.0,0.06598432]
[1767554040671,0.00093029,90931.0,90930.0,0.06598432]
[1767554040882,0.0001498,90941.0,90936.0,0.01099674]
[1767554040883,0.05513086,90941.0,90936.0,0.01099674]
[1767554041071,0.01099638,90939.0,90934.0,0.01099698]
[1767554041300,0.01099638,90939.0,90933.0,0.0109971]
[1767554041301,0.06597959,90938.0,90933.0,0.0109971]
[1767554041517,0.0109965,90938.0,90934.0,0.01099698]
[1767554041724,0.0109965,90938.0,90933.0,0.0109971]
[1767554042012,0.0109965,90938.0,90930.0,0.06598423]
[1767554042013,0.00093,90934.0,90930.0,0.06598423]
[1767554042216,0.06598085,90936.0,90931.0,0.01099734]
[1767554042863,0.01099686,90935.0,90930.0,0.06598423]
[1767554043055,0.01099662,90937.0,90931.0,0.01099734]
[1767554043201,0.0109965,90938.0,90935.0,6.9e-05]
[1767554043418,0.06597951,90938.0,90935.0,6.9e-05]
[1767554043788,0.06598024,90937.0,90931.0,0.01099734]
[1767554044037,0.06598094,90936.0,90930.0,0.06598423]
[1767554044327,0.06597905,90938.0,90933.0,0.0109971]
[1767554044509,0.0109965,90938.0,90936.0,6.9e-05]
[1767554044726,0.0001498,90941.0,90938.0,0.0109965]
[1767554044890,0.99832713,90946.0,90941.0,0.06597684]
[1767554045203,0.99832713,90946.0,90942.0,0.06597561]
[1767554045416,0.99832713,90946.0,90942.0,0.01099601]
[1767554045618,1.06430059,90946.0,90941.0,0.01099614]
[1767554045792,0.99832713,90946.0,90942.0,0.01099601]
[1767554045997,1e-08,90946.0,90945.0,0.10021575]
[1767554046313,4e-05,90948.0,90947.0,0.05497707]
[1767554047093,4e-05,90948.0,90946.0,0.05497761]
[1767554047293,4e-05,90948.0,90945.0,0.06597393]
[1767554047294,0.02208,90952.0,90951.0,0.01099493]
[1767554047494,0.02208,90952.0,90950.0,0.06597031]
[1767554047939,0.0109942,90957.0,90950.0,0.06597031]
[1767554048141,0.02208,90952.0,90950.0,0.06597031]
[1767554048338,0.0109942,90957.0,90951.0,0.01099493]
[1767554048539,0.02208,90954.0,90951.0,0.01099493]
[1767554049117,0.02208,90954.0,90951.0,0.06596917]
[1767554049562,0.02208,90954.0,90952.0,0.05497402]
[1767554050303,0.02208,90954.0,90951.0,0.06596917]
[1767554050503,0.01125208,90959.0,90956.0,0.01099432]
[1767554050504,0.00025812,90959.0,90956.0,0.01099432]
[1767554050827,0.02208,90958.0,90956.0,0.01099432]
[1767554051425,0.02208,90958.0,90956.0,0.06596588]
[1767554051625,0.02208,90958.0,90956.0,0.01099432]
[1767554051828,0.02208,90958.0,90954.0,0.06596729]
[1767554052026,0.02208,90958.0,90955.0,0.01099444]
[1767554052234,0.02208,90958.0,90954.0,0.06596729]
[1767554052443,0.02208,90958.0,90955.0,0.01099444]
[1767554052645,0.02208,90958.0,90954.0,0.06596729]
[1767554053125,0.02208,90958.0,90955.0,0.01099444]
[1767554053748,0.02208,90958.0,90954.0,0.06596729]
[1767554053951,0.02200129,90958.0,90955.0,0.01099444]
[1767554054591,0.02200129,90958.0,90950.0,0.21990104]
[1767554055432,0.02200129,90958.0,90955.0,0.01099444]
[1767554056495,0.0219134,90958.0,90955.0,0.06596653]
[1767554057165,0.0219134,90958.0,90955.0,0.01099444]
[1767554057594,0.0219134,90958.0,90955.0,0.06596662]
[1767554057996,0.0219134,90958.0,90955.0,0.01099444]
[1767554058542,0.02182551,90958.0,90955.0,0.01099444]
[1767554059779,0.02182551,90958.0,90955.0,0.06596639]
[1767554060312,0.02182551,90958.0,90956.0,0.05497145]
[1767554060512,0.00025812,90959.0,90956.0,0.01099432]
[1767554060723,0.02208,90958.0,90956.0,0.01099432]
[1767554061283,0.02208,90958.0,90953.0,0.06596753]
[1767554061526,0.02208,90958.0,90954.0,0.01099456]
[1767554061900,0.01199356,90954.0,90947.0,0.01099541]
[1767554062165,0.04549104,90953.0,90949.0,0.06597093]
[1767554062338,0.06596701,90956.0,90950.0,0.01099505]
[1767554062519,0.06596701,90956.0,90949.0,0.06597093]
[1767554062680,0.06757104,90958.0,90950.0,0.00999605]
[1767554062887,0.05648524,90957.0,90952.0,0.01099481]
[1767554063570,0.11145628,90957.0,90950.0,0.06497118]
[1767554063898,0.05648524,90957.0,90951.0,0.0659693]
[1767554064539,0.01099432,90956.0,90951.0,0.01099493]
[1767554064946,0.02208,90958.0,90956.0,0.000999]
[1767554065108,0.07705054,90958.0,90956.0,0.000999]
[1767554065312,0.03307408,90958.0,90953.0,0.01099468]
[1767554066155,0.03298619,90958.0,90953.0,0.01099468]
[1767554067338,0.03298619,90958.0,90952.0,0.06596877]
[1767554067543,0.05497106,90957.0,90951.0,0.01099493]
[1767554067969,0.01099432,90956.0,90951.0,0.01099493]
[1767554068710,0.06596526,90957.0,90951.0,0.01099493]
[1767554068834,0.0109942,90957.0,90951.0,0.01099493]
[1767554069533,0.0109942,90957.0,90951.0,0.06596955]
[1767554069940,0.06596532,90957.0,90950.0,0.06497123]
[1767554070451,0.01043607,90957.0,90951.0,0.06596939]
[1767554071283,0.13368965,90958.0,90952.0,0.01099481]
[1767554071483,0.0787191,90958.0,90952.0,0.06596877]
[1767554071601,0.13368957,90958.0,90952.0,0.06596877]
[1767554071798,0.03298619,90958.0,90952.0,0.06596877]
[1767554072029,0.02199211,90958.0,90952.0,0.06596877]
[1767554072602,0.02190421,90958.0,90952.0,0.06596877]
[1767554073253,0.02190421,90958.0,90953.0,0.01099468]
[1767554073444,0.03289829,90958.0,90952.0,0.06596877]
[1767554073623,0.02190421,90958.0,90953.0,0.01099468]
[1767554073841,0.02190421,90958.0,90953.0,0.0659681]
[1767554074036,0.02190421,90958.0,90953.0,0.01099468]
[1767554074800,0.02190421,90958.0,90953.0,0.01059932]
[1767554075145,0.07687511,90958.0,90950.0,0.00999605]
[1767554075386,0.02190421,90958.0,90953.0,0.01099468]
[1767554076238,0.03289829,90958.0,90953.0,0.01099468]
[1767554076644,0.02190421,90958.0,90953.0,0.01099468]
[1767554078511,0.02190421,90958.0,90952.0,0.06596839]
[1767554078512,0.03289829,90958.0,90952.0,0.06596839]
[1767554078734,0.02090521,90958.0,90955.0,0.05497206]
[1767554079112,0.02090521,90958.0,90952.0,0.06596851]
[1767554079315,0.0208173,90958.0,90954.0,0.01099456]
[1767554079718,0.0208173,90958.0,90955.0,0.01099444]
[1767554081422,0.06596577,90957.0,90949.0,0.01099517]
[1767554081622,0.05497336,90954.0,90946.0,0.0549771]
[1767554081849,0.06596792,90954.0,90947.0,0.01099541]
[1767554082049,0.01099456,90954.0,90948.0,0.01099529]
[1767554082423,0.06596785,90955.0,90948.0,0.01099529]
[1767554082724,0.01099456,90954.0,90948.0,0.01008429]
[1767554082914,0.06596757,90954.0,90948.0,0.01008429]
[1767554083119,0.01099468,90953.0,90947.0,0.06597233]
[1767554083595,0.0465545,90952.0,90947.0,0.01099541]
[1767554083812,0.05754931,90952.0,90947.0,0.01099541]
[1767554084008,0.0465545,90952.0,90948.0,0.01099529]
[1767554084207,0.01099456,90954.0,90948.0,0.01099529]
[1767554084568,0.01099444,90955.0,90948.0,0.06597119]
[1767554084780,0.01099456,90954.0,90948.0,0.06597119]
[1767554084979,0.01099444,90955.0,90948.0,0.01099529]
[1767554085181,0.01099444,90955.0,90949.0,0.01099517]
[1767554085381,0.05754894,90955.0,90949.0,0.01099517]
[1767554086149,0.11252121,90955.0,90948.0,0.06597128]
[1767554086268,0.05754906,90954.0,90948.0,0.06597128]
[1767554086460,0.01099456,90954.0,90948.0,0.01099529]
[1767554086662,0.01099456,90954.0,90943.0,0.19227609]
[1767554086885,0.01099432,90956.0,90950.0,0.01099505]
[1767554087292,0.0465545,90954.0,90949.0,0.05497545]
[1767554087493,0.0465545,90954.0,90949.0,0.01099517]
[1767554088337,0.01099444,90955.0,90949.0,0.01099517]
[1767554088540,0.03181138,90958.0,90955.0,0.000999]
[1767554088738,0.0208173,90958.0,90952.0,0.06596883]
[1767554089520,0.03181138,90958.0,90952.0,0.06596883]
[1767554090140,0.03181138,90958.0,90952.0,0.01099481]
[1767554090545,0.0455555,90957.0,90952.0,0.06596874]
[1767554090721,0.03181138,90958.0,90951.0,0.06596954]
[1767554091611,0.0208173,90958.0,90952.0,0.06596845]
[1767554091989,0.0208173,90958.0,90952.0,0.01099481]
[1767554092294,0.0465545,90957.0,90952.0,0.01099481]
[1767554092509,0.0208173,90958.0,90953.0,0.01099468]
[1767554093798,0.0673718,90958.0,90953.0,0.01099468]
[1767554094018,0.0208173,90958.0,90953.0,0.01099468]
[1767554094154,0.02072939,90958.0,90952.0,0.06596862]
[1767554094356,0.03172347,90958.0,90952.0,0.06596862]
[1767554095344,0.03172347,90958.0,90952.0,0.01099481]
[1767554095481,0.0465545,90957.0,90952.0,0.01099481]
[1767554095658,0.03172347,90958.0,90952.0,0.01099481]
[1767554096636,0.02072939,90958.0,90953.0,0.01099468]
[1767554097416,0.02072939,90958.0,90952.0,0.06596881]
[1767554097641,0.02072939,90958.0,90953.0,0.01099468]
[1767554097786,0.0465545,90957.0,90953.0,0.01099468]
[1767554098133,0.02072939,90958.0,90953.0,0.01099468]
[1767554098437,0.03172347,90958.0,90952.0,0.01099481]
[1767554099215,0.08669391,90958.0,90952.0,0.01099481]
[1767554099622,0.086606,90958.0,90952.0,0.01099481]
[1767554099811,0.086606,90958.0,90951.0,0.06596838]
[1767554100194,0.01099432,90956.0,90950.0,0.06597023]
[1767554100397,0.05954591,90955.0,90945.0,0.01099565]
[1767554100594,0.04855147,90940.0,90938.0,4e-05]
[1767554100795,0.04855147,90940.0,90924.0,0.17267785]
[1767554100796,0.10127713,90939.0,90924.0,0.17267785]
[1767554101024,0.06598197,90934.0,90927.0,0.01099783]
[1767554101232,0.01099734,90931.0,90924.0,0.06598885]
[1767554101446,0.01099722,90932.0,90925.0,0.06598822]
[1767554101642,0.05958833,90935.0,90927.0,0.05498886]
[1767554101847,0.05958833,90935.0,90929.0,0.01099759]
[1767554102044,0.05958833,90935.0,90928.0,0.01099771]
[1767554102045,4e-05,90935.0,90933.0,0.05498538]
[1767554102282,0.01099517,90949.0,90941.0,0.01099614]
[1767554102487,0.01099493,90951.0,90941.0,0.01099614]
[1767554102668,1.09903559,90989.0,90947.0,0.05497707]
[1767554102669,0.06596461,90958.0,90947.0,0.05497707]
[1767554102882,0.02208,90953.0,90950.0,0.06597016]
[1767554103202,0.02208,90953.0,90947.0,0.01099541]
[1767554103325,0.02208,90953.0,90949.0,0.01099517]
[1767554103830,0.02208,90953.0,90951.0,0.05497465]
[1767554104034,0.02208,90953.0,90952.0,0.05497405]
[1767554104928,0.01114376,90959.0,90953.0,0.01099468]
[1767554105134,0.0001498,90959.0,90953.0,0.01099468]
[1767554105344,0.0001498,90959.0,90954.0,0.05873939]
[1767554105559,0.0001498,90959.0,90955.0,0.06596657]
[1767554105769,0.0001498,90959.0,90956.0,0.01099432]
[1767554106190,0.0001498,90959.0,90955.0,0.06596657]
[1767554106396,0.0001498,90959.0,90954.0,0.01099456]
[1767554106609,0.0001498,90959.0,90956.0,0.01099432]
[1767554106816,0.0001498,90959.0,90957.0,0.0549709]
[1767554107234,0.0001498,90959.0,90956.0,0.01099432]
[1767554107440,0.000999,90957.0,90954.0,0.01099456]
[1767554107656,0.000999,90957.0,90954.0,0.06596738]
[1767554107863,0.0001498,90959.0,90956.0,0.01099432]
[1767554108066,0.0001498,90959.0,90955.0,0.01099444]
[1767554108273,0.0001498,90959.0,90956.0,0.01099432]
[1767554108482,0.04855147,90958.0,90956.0,0.01099432]
[1767554108691,0.0001498,90959.0,90956.0,0.01099432]
[1767554108897,0.0001498,90959.0,90956.0,0.06596594]
[1767554109104,0.0001498,90959.0,90957.0,0.05497089]
[1767554109859,0.0001498,90959.0,90956.0,0.06596594]
[1767554110278,0.02208,90963.0,90961.0,0.05496817]
[1767554110470,0.02208,90963.0,90961.0,0.05492324]
[1767554110678,0.02208,90963.0,90962.0,0.054968]
[1767554110855,0.02208,90963.0,90962.0,0.05492308]
[1767554111057,0.02208,90963.0,90960.0,0.01099384]
[1767554111486,0.02208,90963.0,90961.0,0.05496859]
[1767554111893,0.02208,90963.0,90962.0,0.054968]
[1767554112918,0.000999,90962.0,90960.0,0.01099384]
[1767554113367,0.00060148,90961.0,90960.0,0.01099384]
[1767554113527,4e-05,90964.0,90963.0,0.0549674]
[1767554113871,0.01099215,90974.0,90963.0,0.0549674]
[1767554114075,0.02208,90976.0,90962.0,0.054968]
[1767554114076,0.06595263,90976.0,90968.0,0.01099287]
[1767554114261,0.02208,90973.0,90967.0,0.06595791]
[1767554114461,0.03307227,90973.0,90967.0,0.01099299]
[1767554114619,0.03307227,90973.0,90966.0,0.05496504]
[1767554114620,0.000999,90967.0,90966.0,0.06595815]
[1767554115025,0.03307227,90973.0,90967.0,0.01099299]
[1767554115364,0.03307227,90973.0,90967.0,0.0659579]
[1767554115365,0.02208,90973.0,90967.0,0.0659579]
[1767554115600,0.02208,90973.0,90970.0,0.05496317]
[1767554115802,0.02208,90972.0,90970.0,0.05496317]
[1767554115971,0.04855147,90971.0,90968.0,0.01099287]
[1767554116308,0.02208,90972.0,90968.0,0.01099287]
[1767554116309,0.02208,90972.0,90969.0,0.06595648]
[1767554116641,0.02208,90972.0,90970.0,0.05496312]
[1767554116858,0.02208,90972.0,90969.0,0.06595648]
[1767554117064,0.0001498,90977.0,90971.0,0.10777983]
[1767554117272,1e-08,90977.0,90976.0,0.10270437]
[1767554117472,0.01099021,90990.0,90980.0,0.01099142]
[1767554117673,0.01099021,90990.0,90976.0,0.04774483]
[1767554117674,0.06593992,90992.0,90985.0,0.15552297]
[1767554117873,0.01098985,90993.0,90986.0,0.06594408]
[1767554118197,0.0001498,90995.0,90988.0,0.01099046]
[1767554118398,0.0001498,90995.0,90989.0,0.01099033]
[1767554118399,0.0222298,90995.0,90989.0,0.01099033]
[1767554118613,0.03321941,90995.0,90988.0,0.0659422]
[1767554118815,0.01098973,90994.0,90988.0,0.01099046]
[1767554119222,0.01113941,90995.0,90988.0,0.01099046]
[1767554119370,0.0001498,90995.0,90989.0,0.01099033]
[1767554119573,0.0001498,90995.0,90990.0,0.05873504]
[1767554120066,0.0001498,90995.0,90990.0,0.04774483]
[1767554120269,0.0001498,90995.0,90990.0,0.05873504]
[1767554121081,0.0001498,90995.0,90991.0,0.01099009]
[1767554121235,0.0001498,90995.0,90990.0,0.04774483]
[1767554121435,0.01098901,91000.0,90990.0,0.04774483]
[1767554121436,0.0002315,91009.0,90993.0,0.01098985]
[1767554121625,0.02208,91004.0,90996.0,0.01098949]
[1767554121820,0.02208,91004.0,90999.0,0.09678732]
[1767554122187,0.01142977,90999.0,90994.0,0.34550519]
[1767554122394,0.01109753,90999.0,90992.0,0.01098997]
[1767554122634,0.04855147,90995.0,90974.0,0.04774483]
[1767554122845,0.04855147,90995.0,90968.0,0.09678732]
[1767554122846,0.01099094,90984.0,90977.0,0.05495884]
[1767554123010,0.01099058,90987.0,90981.0,0.0109913]
[1767554123212,0.01099058,90987.0,90980.0,0.06594847]
[1767554123411,0.04855147,90994.0,90988.0,0.01099046]
[1767554123611,0.01098949,90996.0,90990.0,0.01099021]
[1767554123821,0.08801743,90997.0,90991.0,0.01099009]
[1767554124025,0.04855147,90996.0,90990.0,0.01099021]
[1767554124226,0.04855147,90996.0,90991.0,0.06594057]
[1767554124390,0.02208,90997.0,90994.0,0.06593821]
[1767554125013,0.021081,90997.0,90994.0,0.06593821]
[1767554125415,0.0001084,90999.0,90998.0,0.05494626]
[1767554125654,0.0001084,90999.0,90996.0,0.01098949]
[1767554125858,0.000999,90998.0,90995.0,0.06593709]
[1767554126255,0.0001084,90999.0,90996.0,0.01098949]
[1767554126497,0.0001084,90999.0,90997.0,0.05494645]
[1767554126701,0.0001084,90999.0,90996.0,0.06593691]
[1767554130026,0.0001084,90999.0,90996.0,0.06493791]
[1767554130437,0.0001084,90999.0,90997.0,0.05494683]
[1767554130578,0.0001084,90999.0,90996.0,0.00999049]
[1767554130774,4e-07,90999.0,90997.0,0.05494686]
[1767554131792,4e-07,90999.0,90997.0,0.05494678]
[1767554132030,0.000108,90997.0,90995.0,0.01098961]
[1767554132346,4e-07,90999.0,90995.0,0.01098961]
[1767554132347,4e-07,90999.0,90996.0,0.01098949]
[1767554132689,4e-07,90999.0,90997.0,0.05494676]
[1767554132892,4e-07,90999.0,90996.0,0.0659364]
[1767554133753,4e-07,90999.0,90994.0,0.06593799]
[1767554133963,4e-07,90999.0,90995.0,0.01098961]
[1767554134290,4e-07,90999.0,90994.0,0.06593799]
[1767554134437,0.000108,90995.0,90993.0,0.06593896]
[1767554134637,4e-07,90999.0,90995.0,0.01098961]
[1767554134868,4e-07,90999.0,90995.0,0.06593713]
[1767554135203,4e-07,90999.0,90996.0,0.06593681]
[1767554135851,4e-07,90999.0,90997.0,0.05494683]
[1767554136054,4e-07,90999.0,90996.0,0.06593681]
[1767554136432,4e-07,90999.0,90997.0,0.05494672]
[1767554136746,4e-07,90999.0,90998.0,0.05494626]
[1767554136949,4e-07,90999.0,90997.0,0.05494672]
[1767554136950,0.04912064,91005.0,91001.0,0.01098889]
[1767554137286,0.022188,91001.0,91000.0,0.06593388]
[1767554137519,0.02210009,91001.0,91000.0,0.06593388]
[1767554137694,0.02199209,91001.0,91000.0,0.01098901]
[1767554137869,4.004e-05,91005.0,91004.0,0.05494263]
[1767554138069,0.02208,91007.0,91005.0,4e-05]
[1767554138394,0.08800913,91007.0,91000.0,0.01098901]
[1767554138548,0.0109884,91005.0,90999.0,0.41143973]
[1767554138771,0.01090048,91005.0,90999.0,0.06593454]
[1767554138976,0.01098828,91006.0,90999.0,0.01098913]
[1767554139198,0.03306816,91007.0,91000.0,0.06593404]
[1767554139404,0.03306816,91007.0,91001.0,0.06593333]
[1767554139937,0.01098828,91006.0,91000.0,0.06593404]
[1767554140137,0.000108,91000.0,90999.0,0.01098913]
[1767554140275,0.01098852,91004.0,90998.0,0.06593533]
[1767554140483,0.01098852,91004.0,90998.0,0.01098925]
[1767554141482,0.01098864,91003.0,90997.0,0.06593621]
[1767554141721,0.01098852,91004.0,90998.0,0.01098925]
[1767554142314,0.01098864,91003.0,90995.0,0.05494787]
[1767554142535,0.01098876,91002.0,90996.0,0.01098949]
[1767554142754,0.06593237,91003.0,90997.0,0.01098937]
[1767554143318,0.06593125,91004.0,90998.0,0.01098925]
[1767554143551,0.01098864,91003.0,90997.0,0.0659362]
[1767554143754,0.01098864,91003.0,90998.0,0.01098925]
[1767554143890,0.01098864,91003.0,90997.0,0.0659362]
[1767554144090,0.01098864,91003.0,90997.0,0.01098937]
[1767554144501,0.0109437,91003.0,90997.0,0.01098937]
[1767554144706,0.0109437,91003.0,90998.0,0.01098925]
[1767554146035,0.06592974,91006.0,90999.0,0.05494565]
[1767554146244,0.06592974,91006.0,90999.0,0.06593478]
[1767554146449,0.06593053,91005.0,90997.0,0.06593616]
[1767554146659,0.05495405,90987.0,90977.0,0.01099178]
[1767554146865,0.00044064,90997.0,90987.0,0.00096]
[1767554146866,0.11502336,90988.0,90987.0,0.00096]
[1767554147075,0.11497841,90988.0,90980.0,0.35649661]
[1767554147278,0.05495467,90985.0,90980.0,0.34550519]
[1767554147485,0.0109907,90986.0,90985.0,0.00096]
[1767554147676,0.01099058,90987.0,90980.0,0.06594831]
[1767554147900,0.06594333,90988.0,90981.0,0.0109913]
[1767554148115,0.01099058,90987.0,90981.0,0.0109913]
[1767554148486,0.01099058,90987.0,90982.0,0.01099118]
[1767554148853,0.01099082,90985.0,90979.0,0.01099154]
[1767554149077,0.01099094,90984.0,90978.0,0.0659495]
[1767554149229,0.01099094,90984.0,90977.0,0.34561359]
[1767554149230,0.01099106,90983.0,90977.0,0.35660537]
[1767554149430,0.06594573,90984.0,90978.0,0.01099166]
[1767554149768,0.01099106,90983.0,90977.0,0.01110018]
[1767554150170,0.01099082,90985.0,90978.0,0.01099166]
[1767554150410,0.0653865,90986.0,90980.0,0.01099142]
[1767554150604,0.06510736,90986.0,90980.0,0.01099142]
[1767554151379,0.0109907,90986.0,90980.0,0.01099142]
[1767554151591,0.0109907,90986.0,90981.0,0.0109913]
[1767554151795,0.06594363,90987.0,90981.0,0.0109913]
[1767554152498,0.01099082,90985.0,90979.0,0.01099154]
[1767554152728,0.06007202,90980.0,90977.0,0.0001084]
[1767554152922,0.01099227,90973.0,90967.0,0.01099299]
[1767554153052,0.01110049,90973.0,90966.0,0.06595848]
[1767554153234,0.00010822,90973.0,90968.0,0.01099287]
[1767554153940,0.01110049,90973.0,90967.0,0.06595781]
[1767554154381,0.01110049,90973.0,90967.0,0.01099299]
[1767554154556,0.01110049,90973.0,90966.0,0.06595753]
[1767554155316,0.01099251,90971.0,90964.0,0.01114316]
[1767554155529,0.0490806,90968.0,90964.0,0.01114316]
[1767554155737,0.01099263,90970.0,90964.0,0.01114316]
[1767554156657,0.01099263,90970.0,90964.0,0.0001498]
[1767554156658,0.01099275,90969.0,90964.0,0.0001498]
[1767554156829,0.0008492,90964.0,90962.0,0.06596119]
[1767554157029,0.01099275,90969.0,90963.0,0.01095348]
[1767554157931,0.01099287,90968.0,90962.0,0.0109936]
[1767554158104,0.01099275,90969.0,90963.0,0.01099348]
[1767554158277,0.06595617,90970.0,90963.0,0.01099348]
[1767554158463,0.01099275,90969.0,90963.0,0.01099348]
[1767554158862,0.03307239,90972.0,90965.0,0.06595925]
[1767554159064,0.08803464,90972.0,90969.0,0.000149]
[1767554159485,0.02208,90972.0,90969.0,0.000149]
[1767554159664,0.02208,90972.0,90967.0,0.01099299]
[1767554159863,0.02208,90972.0,90968.0,0.01099287]
[1767554160302,0.02188606,90972.0,90968.0,0.01099287]
[1767554160484,0.02188606,90972.0,90969.0,0.01099275]
[1767554161777,0.02188606,90972.0,90970.0,0.05496266]
[1767554162161,0.000999,90970.0,90968.0,0.01099287]
[1767554162404,0.000999,90970.0,90968.0,0.06595693]
[1767554162602,0.000999,90970.0,90969.0,0.05496377]
[1767554162937,0.02188606,90972.0,90969.0,0.01099275]
[1767554163426,0.02188606,90972.0,90969.0,0.06595633]
[1767554163648,0.02188606,90972.0,90970.0,0.05496293]
[1767554163775,0.04747914,90971.0,90970.0,0.05496293]
[1767554163975,0.04410138,90971.0,90970.0,0.05496293]
[1767554164181,0.02078702,90972.0,90970.0,0.05496293]
[1767554164388,0.04739347,90971.0,90970.0,0.05496293]
[1767554164592,0.00010822,90973.0,90970.0,0.06595556]
[1767554166804,0.00010822,90973.0,90971.0,0.05496209]
[1767554167160,0.00010822,90973.0,90970.0,0.06595461]
[1767554170810,0.00010822,90973.0,90971.0,0.05496235]
[1767554170965,3.949e-05,90973.0,90972.0,0.05496196]
[1767554171167,3.949e-05,90973.0,90970.0,0.21985269]
[1767554171366,3.949e-05,90973.0,90972.0,0.05496196]
[1767554171578,3.949e-05,90973.0,90970.0,0.21985269]
[1767554171579,0.04747914,90984.0,90979.0,0.01099154]
[1767554171767,0.000999,90979.0,90977.0,0.05495786]
[1767554172016,0.02208,90983.0,90978.0,0.01099166]
[1767554172592,0.02208,90982.0,90978.0,0.01099166]
[1767554173046,0.02208,90982.0,90978.0,0.06594997]
[1767554173618,0.02208,90982.0,90981.0,0.05495652]
[1767554173787,0.02208,90985.0,90982.0,0.01099118]
[1767554174216,0.02208,90985.0,90982.0,0.06594697]
[1767554174423,0.000999,90982.0,90980.0,0.01099142]
[1767554174655,0.000999,90982.0,90980.0,0.06594824]
[1767554175024,0.02208,90985.0,90982.0,0.01099118]
[1767554175953,0.02208,90985.0,90981.0,0.06594765]
[1767554176663,0.02208,90985.0,90981.0,0.0109913]
[1767554177081,0.02208,90985.0,90980.0,0.01099142]
[1767554178325,0.03307082,90985.0,90979.0,0.01099154]
[1767554178739,0.01099106,90983.0,90977.0,0.01099178]
[1767554178931,0.06594575,90984.0,90977.0,0.01099178]
[1767554179145,0.07703427,90985.0,90978.0,0.01099166]
[1767554179345,0.02208,90985.0,90979.0,0.0659487]
[1767554179496,0.01099094,90984.0,90977.0,0.01094784]
[1767554179695,0.02208,90985.0,90980.0,0.01099142]
[1767554180017,0.02208,90985.0,90978.0,0.06594955]
[1767554180762,0.03307082,90985.0,90979.0,0.01099154]
[1767554181334,0.02208,90985.0,90979.0,0.01099154]
[1767554181535,0.02203505,90985.0,90980.0,0.01099142]
[1767554182031,0.02203505,90985.0,90981.0,0.0109913]
[1767554182586,0.02203505,90985.0,90981.0,0.06594769]
[1767554183386,0.02203505,90985.0,90980.0,0.06594818]
[1767554183588,0.02203505,90985.0,90980.0,0.01099142]
[1767554183974,0.02203505,90985.0,90980.0,0.06594841]
[1767554184240,0.02203505,90985.0,90981.0,0.06594769]
[1767554184647,0.02203505,90985.0,90980.0,0.06594841]
[1767554184851,0.02203505,90985.0,90980.0,0.06594819]
[1767554185053,0.02203505,90985.0,90981.0,0.0109913]
[1767554185257,0.02203505,90985.0,90982.0,0.01099118]
[1767554185589,0.02103605,90985.0,90982.0,0.06594696]
[1767554185793,0.02103605,90985.0,90981.0,0.06594761]
[1767554186002,0.02103605,90985.0,90982.0,0.01099118]
[1767554186406,0.21977947,91001.0,90988.0,0.01099046]
[1767554186626,0.01098997,90992.0,90985.0,0.01099082]
[1767554186826,0.02204,90993.0,90987.0,0.0549529]
[1767554186999,0.01099009,90991.0,90985.0,0.01099082]
[1767554187381,0.01098997,90992.0,90985.0,0.06594467]
[1767554187852,0.0879796,90993.0,90986.0,0.0109907]
[1767554188004,0.03302985,90993.0,90987.0,0.01099058]
[1767554188215,0.03308143,90993.0,90987.0,0.01099058]
[1767554188901,0.02209158,90993.0,90988.0,0.01099046]
[1767554189281,0.000999,90988.0,90986.0,0.06594406]
[1767554189484,0.000999,90988.0,90987.0,0.0549529]
[1767554189903,0.02209158,90993.0,90988.0,0.01099046]
[1767554190245,0.03308143,90993.0,90987.0,0.06594348]
[1767554190449,0.01098997,90992.0,90986.0,0.0109907]
[1767554190653,0.03308143,90993.0,90987.0,0.01099058]
[1767554190828,0.02209158,90993.0,90987.0,0.01099058]
[1767554191040,0.02209158,90993.0,90978.0,0.01099166]
[1767554191248,0.000999,90987.0,90986.0,0.0549535]
[1767554191384,0.02209158,90993.0,90990.0,0.06594075]
[1767554191586,0.02209158,90993.0,90990.0,0.01094626]
[1767554191794,0.04739243,91003.0,90990.0,0.01094626]
[1767554191795,0.02204,90996.0,90994.0,0.05494867]
[1767554192009,0.02204,90996.0,90995.0,0.05494807]
[1767554192210,0.04739243,91008.0,91006.0,0.06592964]
[1767554192432,0.0001498,91013.0,91008.0,0.05494022]
[1767554192642,0.06943243,91012.0,91011.0,0.05493786]
[1767554192840,0.06943243,91012.0,91011.0,0.05489392]
[1767554193036,0.04739243,91022.0,91018.0,0.01098683]
[1767554193288,0.02204,91021.0,91020.0,0.05493298]
[1767554193876,0.02204,91021.0,91019.0,0.01098671]
[1767554194076,0.02204,91021.0,91020.0,0.05493286]
[1767554194288,0.02204,91021.0,91019.0,0.06591999]
[1767554194494,0.02204,91021.0,91020.0,0.05493298]
[1767554196407,0.0004,91023.0,91022.0,0.05493177]
[1767554196718,0.02244,91023.0,91022.0,0.05493177]